[Event "Late-Titled-Tuesday-Blitz-April-16-2024"]
[Site "Chess.com"]
[Date "2024.04.16"]
[Round "9"]
[White "NMJeevanK"]
[Black "ellatambien"]
[Result "0-1"]
[WhiteElo "2567"]
[BlackElo "2715"]
[TimeControl "180+1"]
[EndTime "15:42:24 PDT"]
[Termination "ellatambien won by resignation"]

1. e4 {[%clk 0:03:00.9]} 1... e5 {[%clk 0:03:00.2]} 2. Nf3 {[%clk 0:03:00.9]}
2... Nc6 {[%clk 0:02:59.8]} 3. Nc3 {[%clk 0:03:00]} 3... Nf6 {[%clk 0:02:59.7]}
4. a4 {[%clk 0:03:00.1]} 4... d5 {[%clk 0:02:57.2]} 5. exd5 {[%clk 0:02:56.1]}
5... Nxd5 {[%clk 0:02:58.1]} 6. Bb5 {[%clk 0:02:47.2]} 6... Nxc3 {[%clk
0:02:56.8]} 7. bxc3 {[%clk 0:02:48.1]} 7... Bd6 {[%clk 0:02:56.7]} 8. O-O {[%clk
0:02:47.9]} 8... O-O {[%clk 0:02:56.4]} 9. d4 {[%clk 0:02:47.4]} 9... exd4
{[%clk 0:02:56.5]} 10. cxd4 {[%clk 0:02:47.8]} 10... Bg4 {[%clk 0:02:56.4]} 11.
c3 {[%clk 0:02:48.3]} 11... Na5 {[%clk 0:02:56]} 12. h3 {[%clk 0:02:44.7]} 12...
Bh5 {[%clk 0:02:55.6]} 13. Be2 {[%clk 0:02:44.6]} 13... Re8 {[%clk 0:02:55.3]}
14. Be3 {[%clk 0:02:40.3]} 14... c6 {[%clk 0:02:55.4]} 15. Qc2 {[%clk
0:02:37.2]} 15... Bc7 {[%clk 0:02:54.8]} 16. Rfe1 {[%clk 0:02:32.3]} 16... a6
{[%clk 0:02:53.6]} 17. Rab1 {[%clk 0:02:31]} 17... b5 {[%clk 0:02:53.1]} 18.
axb5 {[%clk 0:02:30.5]} 18... axb5 {[%clk 0:02:53.1]} 19. Ra1 {[%clk 0:02:25.2]}
19... Qd5 {[%clk 0:02:50.7]} 20. Ng5 {[%clk 0:02:14]} 20... Bg6 {[%clk
0:02:41.5]} 21. Bd3 {[%clk 0:02:13.9]} 21... Rxe3 {[%clk 0:02:36.9]} 22. Rxe3
{[%clk 0:01:49.9]} 22... Qxg5 {[%clk 0:02:36.6]} 23. Rae1 {[%clk 0:01:44]} 23...
Qd8 {[%clk 0:02:24]} 24. Bxg6 {[%clk 0:01:40.3]} 24... hxg6 {[%clk 0:02:23.2]}
25. Re7 {[%clk 0:01:12.8]} 25... Bd6 {[%clk 0:02:17.5]} 26. R7e4 {[%clk
0:01:05.5]} 26... Nc4 {[%clk 0:02:16.2]} 27. Qd1 {[%clk 0:01:03.3]} 27... Qf6
{[%clk 0:02:08.5]} 28. Qg4 {[%clk 0:01:00.8]} 28... Bf8 {[%clk 0:01:42.9]} 29.
Qd7 {[%clk 0:00:49.5]} 29... Rd8 {[%clk 0:01:35]} 30. Qa7 {[%clk 0:00:47.6]}
30... Nd6 {[%clk 0:01:30.9]} 31. R4e2 {[%clk 0:00:45.6]} 31... g5 {[%clk
0:01:30]} 32. Re5 {[%clk 0:00:41.8]} 32... Kh7 {[%clk 0:01:25.4]} 33. Qc7 {[%clk
0:00:38.6]} 33... Nc4 {[%clk 0:01:20.7]} 34. Re8 {[%clk 0:00:32.6]} 34... Rxe8
{[%clk 0:01:16.2]} 35. Rxe8 {[%clk 0:00:33.5]} 35... Bd6 {[%clk 0:01:16.4]} 36.
Qxc6 {[%clk 0:00:31.7]} 36... Bh2+ {[%clk 0:01:15.4]} 0-1

[Event "Late-Titled-Tuesday-Blitz-April-16-2024"]
[Site "Chess.com"]
[Date "2024.04.16"]
[Round "9"]
[White "Narek_Ghimoyan"]
[Black "Andrii_Prydun"]
[Result "1-0"]
[WhiteElo "2487"]
[BlackElo "2366"]
[TimeControl "180+1"]
[EndTime "15:42:26 PDT"]
[Termination "Narek_Ghimoyan won on time"]

1. d4 {[%clk 0:03:00.9]} 1... Nf6 {[%clk 0:02:56.3]} 2. c4 {[%clk 0:03:01.8]}
2... e6 {[%clk 0:02:49.8]} 3. Nf3 {[%clk 0:03:01.9]} 3... d5 {[%clk 0:02:49.8]}
4. Nc3 {[%clk 0:03:01.1]} 4... Be7 {[%clk 0:02:49]} 5. Bf4 {[%clk 0:03:00.4]}
5... O-O {[%clk 0:02:47.3]} 6. e3 {[%clk 0:03:00.7]} 6... b6 {[%clk 0:02:43.7]}
7. Bd3 {[%clk 0:02:59.2]} 7... dxc4 {[%clk 0:02:42.9]} 8. Bxc4 {[%clk
0:02:58.9]} 8... Bb7 {[%clk 0:02:43.1]} 9. O-O {[%clk 0:02:58.7]} 9... Nbd7
{[%clk 0:02:42.5]} 10. Qe2 {[%clk 0:02:58.4]} 10... c5 {[%clk 0:02:38.5]} 11.
dxc5 {[%clk 0:02:51.7]} 11... Bxc5 {[%clk 0:02:26.1]} 12. Rfd1 {[%clk
0:02:52.6]} 12... Qe7 {[%clk 0:02:22.4]} 13. Ba6 {[%clk 0:02:50.1]} 13... Bxa6
{[%clk 0:01:33.5]} 14. Qxa6 {[%clk 0:02:51]} 14... Rfc8 {[%clk 0:01:18.4]} 15.
Rd2 {[%clk 0:02:38]} 15... h6 {[%clk 0:01:09.1]} 16. Rad1 {[%clk 0:02:34.7]}
16... Nf8 {[%clk 0:01:08.2]} 17. h3 {[%clk 0:02:18.5]} 17... Ng6 {[%clk
0:01:04.2]} 18. Bd6 {[%clk 0:02:18.1]} 18... Bxd6 {[%clk 0:01:03.5]} 19. Rxd6
{[%clk 0:02:19]} 19... Rab8 {[%clk 0:00:14.8]} 20. Nb5 {[%clk 0:02:10.9]} 20...
Qb7 {[%clk 0:00:13.9]} 21. Qxa7 {[%clk 0:02:08]} 21... Nd5 {[%clk 0:00:03.6]}
22. Qxb7 {[%clk 0:02:05.1]} 22... Rxb7 {[%clk 0:00:04.5]} 23. R6xd5 {[%clk
0:02:05.7]} 23... exd5 {[%clk 0:00:04.4]} 24. Nd6 {[%clk 0:02:06.2]} 24... Rbc7
{[%clk 0:00:02.2]} 25. Nxc8 {[%clk 0:02:06.3]} 25... Rxc8 {[%clk 0:00:03.1]} 26.
Rxd5 {[%clk 0:02:06.4]} 26... Ra8 {[%clk 0:00:03.4]} 27. a3 {[%clk 0:02:06.1]}
27... Ne7 {[%clk 0:00:02.7]} 28. Rb5 {[%clk 0:02:05.7]} 28... Nc8 {[%clk
0:00:01.4]} 29. Nd4 {[%clk 0:02:04.8]} 29... Ra5 {[%clk 0:00:01.8]} 30. Rxa5
{[%clk 0:02:04.2]} 30... bxa5 {[%clk 0:00:02.7]} 31. b4 {[%clk 0:02:03.4]} 31...
axb4 {[%clk 0:00:03]} 32. axb4 {[%clk 0:02:04.3]} 32... Kf8 {[%clk 0:00:03.4]}
33. Kf1 {[%clk 0:02:03.8]} 33... Ke8 {[%clk 0:00:04]} 34. Ke2 {[%clk 0:02:04.5]}
34... Kd7 {[%clk 0:00:04.6]} 35. Kd3 {[%clk 0:02:05]} 35... Nb6 {[%clk
0:00:05.2]} 36. e4 {[%clk 0:02:02.9]} 36... Kd6 {[%clk 0:00:05.5]} 37. f4 {[%clk
0:02:03]} 37... g5 {[%clk 0:00:03.8]} 38. g3 {[%clk 0:02:00.6]} 38... gxf4
{[%clk 0:00:02.6]} 39. gxf4 {[%clk 0:02:01.5]} 39... Ke7 {[%clk 0:00:02.2]} 40.
Nf5+ {[%clk 0:02:00.5]} 1-0

[Event "Late-Titled-Tuesday-Blitz-April-16-2024"]
[Site "Chess.com"]
[Date "2024.04.16"]
[Round "9"]
[White "Bala-Afiada"]
[Black "shirovin"]
[Result "1-0"]
[WhiteElo "2027"]
[BlackElo "2034"]
[TimeControl "180+1"]
[EndTime "15:42:37 PDT"]
[Termination "Bala-Afiada won on time"]

1. d4 {[%clk 0:02:57.4]} 1... f5 {[%clk 0:02:58.5]} 2. c4 {[%clk 0:02:56.4]}
2... Nf6 {[%clk 0:02:58.5]} 3. Nf3 {[%clk 0:02:57.1]} 3... g6 {[%clk 0:02:58.4]}
4. g3 {[%clk 0:02:57.3]} 4... Bg7 {[%clk 0:02:58.8]} 5. Bg2 {[%clk 0:02:58]}
5... O-O {[%clk 0:02:59]} 6. b3 {[%clk 0:02:58.5]} 6... d6 {[%clk 0:02:58.7]} 7.
Bb2 {[%clk 0:02:58.9]} 7... Qe8 {[%clk 0:02:58.2]} 8. d5 {[%clk 0:02:58.3]} 8...
c6 {[%clk 0:02:57.2]} 9. Nc3 {[%clk 0:02:54.2]} 9... Bd7 {[%clk 0:02:56.5]} 10.
O-O {[%clk 0:02:50.1]} 10... Na6 {[%clk 0:02:56.1]} 11. Nd4 {[%clk 0:02:46.2]}
11... Nc7 {[%clk 0:02:53.4]} 12. dxc6 {[%clk 0:02:39.6]} 12... bxc6 {[%clk
0:02:52.1]} 13. e4 {[%clk 0:02:33.1]} 13... c5 {[%clk 0:02:34.5]} 14. Ndb5
{[%clk 0:02:14.9]} 14... Nxb5 {[%clk 0:02:06]} 15. Nxb5 {[%clk 0:02:11.4]} 15...
Bxb5 {[%clk 0:01:30.4]} 16. cxb5 {[%clk 0:02:07.6]} 16... fxe4 {[%clk
0:01:24.7]} 17. Bxf6 {[%clk 0:01:47.2]} 17... Bxf6 {[%clk 0:01:20.6]} 18. Bxe4
{[%clk 0:01:47.7]} 18... Bxa1 {[%clk 0:01:18.8]} 19. Bxa8 {[%clk 0:01:47.6]}
19... Qxa8 {[%clk 0:01:17.4]} 20. Qxa1 {[%clk 0:01:47.5]} 20... Qf3 {[%clk
0:01:03.8]} 21. Qd1 {[%clk 0:01:31.7]} 21... d5 {[%clk 0:01:00.3]} 22. Qxf3
{[%clk 0:01:20.5]} 22... Rxf3 {[%clk 0:00:59.2]} 23. Kg2 {[%clk 0:01:20.7]}
23... d4 {[%clk 0:00:55.4]} 24. Kxf3 {[%clk 0:01:20.4]} 24... Kf7 {[%clk
0:00:08.7]} 25. Ke4 {[%clk 0:01:19.1]} 25... Ke6 {[%clk 0:00:09.3]} 26. Rc1
{[%clk 0:01:16.9]} 26... Kd6 {[%clk 0:00:09.8]} 27. f4 {[%clk 0:01:17.3]} 27...
e6 {[%clk 0:00:09.7]} 28. a4 {[%clk 0:01:16.9]} 1-0

[Event "Late-Titled-Tuesday-Blitz-April-16-2024"]
[Site "Chess.com"]
[Date "2024.04.16"]
[Round "9"]
[White "2Coaches1Profile"]
[Black "Akhayan"]
[Result "0-1"]
[WhiteElo "2538"]
[BlackElo "2404"]
[TimeControl "180+1"]
[EndTime "15:42:41 PDT"]
[Termination "Akhayan won by checkmate"]

1. e4 {[%clk 0:03:00.9]} 1... e5 {[%clk 0:02:59.2]} 2. d4 {[%clk 0:02:59.8]}
2... exd4 {[%clk 0:02:58.6]} 3. Qxd4 {[%clk 0:03:00.6]} 3... Nc6 {[%clk
0:02:58.8]} 4. Qe3 {[%clk 0:03:01.5]} 4... Nf6 {[%clk 0:02:58.3]} 5. Nc3 {[%clk
0:03:01.8]} 5... Bb4 {[%clk 0:02:58.4]} 6. Bd2 {[%clk 0:03:02.1]} 6... O-O
{[%clk 0:02:58.4]} 7. O-O-O {[%clk 0:03:02.8]} 7... Re8 {[%clk 0:02:58]} 8. Qg3
{[%clk 0:03:03.3]} 8... d6 {[%clk 0:02:46.5]} 9. f3 {[%clk 0:03:01.3]} 9... Be6
{[%clk 0:02:33.1]} 10. h4 {[%clk 0:03:01.3]} 10... Nd7 {[%clk 0:02:27.6]} 11. h5
{[%clk 0:02:52.9]} 11... a5 {[%clk 0:02:15]} 12. h6 {[%clk 0:02:37.9]} 12... g6
{[%clk 0:02:14.8]} 13. Nge2 {[%clk 0:02:37.8]} 13... a4 {[%clk 0:02:14.2]} 14.
a3 {[%clk 0:02:34.8]} 14... Bc5 {[%clk 0:02:09.7]} 15. Nf4 {[%clk 0:02:34.6]}
15... b5 {[%clk 0:02:05.9]} 16. Bxb5 {[%clk 0:02:31.7]} 16... Nd4 {[%clk
0:02:04.4]} 17. Nxa4 {[%clk 0:02:10.2]} 17... Nxb5 {[%clk 0:01:58]} 18. Nxc5
{[%clk 0:01:57.3]} 18... Nxc5 {[%clk 0:01:57.3]} 19. Bb4 {[%clk 0:01:53]} 19...
Na6 {[%clk 0:01:48.1]} 20. Ba5 {[%clk 0:01:46.8]} 20... Qd7 {[%clk 0:01:29.5]}
21. e5 {[%clk 0:01:35.2]} 21... Nxa3 {[%clk 0:01:12.8]} 22. bxa3 {[%clk
0:01:34.1]} 22... Qa4 {[%clk 0:01:11.5]} 23. Bc3 {[%clk 0:01:29.8]} 23... Rab8
{[%clk 0:00:59.2]} 24. exd6 {[%clk 0:01:22.6]} 24... Qxa3+ {[%clk 0:00:57.1]}
25. Kd2 {[%clk 0:01:22.7]} 25... Qxd6+ {[%clk 0:00:54.8]} 26. Ke3 {[%clk
0:01:20.1]} 26... Qc5+ {[%clk 0:00:52.5]} 27. Bd4 {[%clk 0:01:19.5]} 27... Qxc2
{[%clk 0:00:51]} 28. Nd3 {[%clk 0:00:56.4]} 28... Bf5+ {[%clk 0:00:41.7]} 29.
Ne5 {[%clk 0:00:52.1]} 29... Rb3+ {[%clk 0:00:40.3]} 30. Kf4 {[%clk 0:00:52.2]}
30... Nc5 {[%clk 0:00:30.5]} 31. Rc1 {[%clk 0:00:48.9]} 31... Ne6# {[%clk
0:00:29.9]} 0-1

[Event "Late-Titled-Tuesday-Blitz-April-16-2024"]
[Site "Chess.com"]
[Date "2024.04.16"]
[Round "9"]
[White "CarlosjPineror"]
[Black "XDPS"]
[Result "1-0"]
[WhiteElo "2710"]
[BlackElo "2813"]
[TimeControl "180+1"]
[EndTime "15:42:43 PDT"]
[Termination "CarlosjPineror won on time"]

1. e4 {[%clk 0:03:00.9]} 1... c5 {[%clk 0:03:00]} 2. Nf3 {[%clk 0:03:01]} 2...
d6 {[%clk 0:03:00.6]} 3. d4 {[%clk 0:03:01.5]} 3... cxd4 {[%clk 0:03:01.5]} 4.
Nxd4 {[%clk 0:03:02]} 4... Nf6 {[%clk 0:03:02.2]} 5. Nc3 {[%clk 0:03:02.7]} 5...
a6 {[%clk 0:03:02.8]} 6. Bg5 {[%clk 0:03:03.1]} 6... Nbd7 {[%clk 0:03:03]} 7.
Qe2 {[%clk 0:03:03.6]} 7... Qc7 {[%clk 0:03:01.5]} 8. O-O-O {[%clk 0:03:03.1]}
8... b5 {[%clk 0:03:01.5]} 9. f4 {[%clk 0:03:03.6]} 9... e5 {[%clk 0:03:01.8]}
10. Nf5 {[%clk 0:03:02.5]} 10... h6 {[%clk 0:03:00.3]} 11. Bh4 {[%clk
0:02:48.8]} 11... exf4 {[%clk 0:02:16.6]} 12. Qd2 {[%clk 0:02:45.5]} 12... g5
{[%clk 0:02:04]} 13. Bf2 {[%clk 0:02:44.2]} 13... Bb7 {[%clk 0:01:34]} 14. Kb1
{[%clk 0:02:29]} 14... Nc5 {[%clk 0:01:21.1]} 15. Bd4 {[%clk 0:02:23.6]} 15...
Be7 {[%clk 0:00:59.2]} 16. Nd5 {[%clk 0:01:34]} 16... Nxd5 {[%clk 0:00:17.5]}
17. exd5 {[%clk 0:01:34.9]} 17... Rh7 {[%clk 0:00:15.9]} 18. Re1 {[%clk
0:01:27]} 18... f6 {[%clk 0:00:04.3]} 19. Bxf6 {[%clk 0:01:25.6]} 19... O-O-O
{[%clk 0:00:04.9]} 20. Nxe7+ {[%clk 0:01:22.9]} 20... Kb8 {[%clk 0:00:05.2]} 21.
Nc6+ {[%clk 0:01:23.2]} 21... Bxc6 {[%clk 0:00:05.7]} 22. Bxd8 {[%clk
0:01:21.9]} 22... Qxd8 {[%clk 0:00:06.2]} 23. dxc6 {[%clk 0:01:22.6]} 23... Kc7
{[%clk 0:00:06.6]} 24. Bd3 {[%clk 0:01:23.2]} 24... Rf7 {[%clk 0:00:06.6]} 25.
Be4 {[%clk 0:01:17.8]} 25... Kb6 {[%clk 0:00:04.6]} 26. Bd5 {[%clk 0:01:15.7]}
26... Rf6 {[%clk 0:00:04.4]} 27. Qd4 {[%clk 0:01:16.1]} 27... Kc7 {[%clk
0:00:03.6]} 28. b4 {[%clk 0:01:16.7]} 28... Na4 {[%clk 0:00:03.7]} 29. Qa7+
{[%clk 0:01:15.3]} 1-0

[Event "Late-Titled-Tuesday-Blitz-April-16-2024"]
[Site "Chess.com"]
[Date "2024.04.16"]
[Round "9"]
[White "Chempiblinka"]
[Black "ACollins05"]
[Result "1-0"]
[WhiteElo "2392"]
[BlackElo "2506"]
[TimeControl "180+1"]
[EndTime "15:42:52 PDT"]
[Termination "Chempiblinka won by resignation"]

1. d4 {[%clk 0:02:59.9]} 1... b5 {[%clk 0:02:57.7]} 2. e4 {[%clk 0:02:59.3]}
2... a6 {[%clk 0:02:57.5]} 3. Bd3 {[%clk 0:02:59]} 3... Bb7 {[%clk 0:02:57.9]}
4. Nf3 {[%clk 0:02:58.6]} 4... e6 {[%clk 0:02:58.3]} 5. Qe2 {[%clk 0:02:57]}
5... c5 {[%clk 0:02:58.4]} 6. c3 {[%clk 0:02:36]} 6... d6 {[%clk 0:02:57.4]} 7.
a4 {[%clk 0:02:33.6]} 7... c4 {[%clk 0:02:52.8]} 8. Bc2 {[%clk 0:02:32.7]} 8...
Nd7 {[%clk 0:02:53.4]} 9. O-O {[%clk 0:02:31.1]} 9... Ngf6 {[%clk 0:02:52.6]}
10. Na3 {[%clk 0:02:16.2]} 10... Be7 {[%clk 0:02:48.6]} 11. Bg5 {[%clk
0:02:11.8]} 11... Qb6 {[%clk 0:02:41.9]} 12. e5 {[%clk 0:01:58.9]} 12... dxe5
{[%clk 0:02:37.4]} 13. dxe5 {[%clk 0:01:42]} 13... Nd5 {[%clk 0:02:28.2]} 14.
Bxe7 {[%clk 0:01:40.3]} 14... Nxe7 {[%clk 0:02:28.2]} 15. Rad1 {[%clk
0:01:29.3]} 15... Nc5 {[%clk 0:02:25.2]} 16. Rd6 {[%clk 0:01:22.4]} 16... Qa5
{[%clk 0:02:18.2]} 17. Nd4 {[%clk 0:01:08.1]} 17... Nxa4 {[%clk 0:02:02.3]} 18.
Qg4 {[%clk 0:00:44.5]} 18... O-O {[%clk 0:01:50.2]} 19. Bxa4 {[%clk 0:00:40.1]}
19... bxa4 {[%clk 0:01:46]} 20. Rd7 {[%clk 0:00:40.1]} 20... Qxe5 {[%clk
0:01:15.9]} 21. Rxb7 {[%clk 0:00:35.2]} 21... Ng6 {[%clk 0:01:13.2]} 22. Nxc4
{[%clk 0:00:32.8]} 22... Qd5 {[%clk 0:01:13.6]} 23. Rb4 {[%clk 0:00:25.8]} 23...
Rfc8 {[%clk 0:01:09]} 24. Nb6 {[%clk 0:00:25.2]} 24... Qa5 {[%clk 0:01:03.9]}
25. Nxa8 {[%clk 0:00:25.1]} 25... Rxa8 {[%clk 0:01:04.8]} 26. Qe4 {[%clk
0:00:24.6]} 26... Rd8 {[%clk 0:01:02]} 27. Nc6 {[%clk 0:00:24.7]} 27... Qd5
{[%clk 0:00:58.8]} 28. Nxd8 {[%clk 0:00:24.8]} 28... Qxd8 {[%clk 0:00:58]} 29.
Rxa4 {[%clk 0:00:25.2]} 29... Ne7 {[%clk 0:00:57.6]} 30. Rxa6 {[%clk 0:00:24.6]}
30... Nd5 {[%clk 0:00:58.5]} 31. Qa4 {[%clk 0:00:23.8]} 31... Nb6 {[%clk
0:00:55.5]} 32. Qa5 {[%clk 0:00:22.8]} 1-0

[Event "Late-Titled-Tuesday-Blitz-April-16-2024"]
[Site "Chess.com"]
[Date "2024.04.16"]
[Round "9"]
[White "Binary010"]
[Black "GlavkonVVS"]
[Result "1-0"]
[WhiteElo "2780"]
[BlackElo "2609"]
[TimeControl "180+1"]
[EndTime "15:42:54 PDT"]
[Termination "Binary010 won by resignation"]

1. d4 {[%clk 0:03:00.9]} 1... Nf6 {[%clk 0:02:59.7]} 2. c4 {[%clk 0:03:01.4]}
2... c5 {[%clk 0:02:59.9]} 3. d5 {[%clk 0:03:01.5]} 3... e6 {[%clk 0:03:00.5]}
4. Nc3 {[%clk 0:03:01.3]} 4... exd5 {[%clk 0:03:00.9]} 5. cxd5 {[%clk
0:03:02.2]} 5... d6 {[%clk 0:03:01.5]} 6. e4 {[%clk 0:03:01.8]} 6... g6 {[%clk
0:03:02.1]} 7. f4 {[%clk 0:03:01.2]} 7... Bg7 {[%clk 0:03:02.5]} 8. Bb5+ {[%clk
0:03:01.3]} 8... Nfd7 {[%clk 0:03:03]} 9. Nf3 {[%clk 0:03:01.7]} 9... O-O {[%clk
0:03:03]} 10. O-O {[%clk 0:03:01.6]} 10... Na6 {[%clk 0:02:58.5]} 11. Kh1 {[%clk
0:02:58.2]} 11... Nc7 {[%clk 0:02:54.1]} 12. Bd3 {[%clk 0:02:58.4]} 12... Re8
{[%clk 0:02:52.7]} 13. a4 {[%clk 0:02:57.1]} 13... a6 {[%clk 0:02:51.7]} 14. Qe1
{[%clk 0:02:47.4]} 14... Rb8 {[%clk 0:02:46.3]} 15. Qg3 {[%clk 0:02:45]} 15...
b5 {[%clk 0:02:44.9]} 16. axb5 {[%clk 0:02:44.9]} 16... axb5 {[%clk 0:02:44.5]}
17. f5 {[%clk 0:02:44.4]} 17... c4 {[%clk 0:02:38.6]} 18. Bc2 {[%clk 0:02:28.9]}
18... b4 {[%clk 0:02:38.2]} 19. Na4 {[%clk 0:02:23.2]} 19... Nb5 {[%clk
0:02:21.9]} 20. Bg5 {[%clk 0:02:09.7]} 20... Qc7 {[%clk 0:02:20.7]} 21. Qh4
{[%clk 0:01:58.2]} 21... f6 {[%clk 0:02:03.4]} 22. Bh6 {[%clk 0:01:37.4]} 22...
g5 {[%clk 0:01:50.1]} 23. Qh5 {[%clk 0:01:37.5]} 23... Bb7 {[%clk 0:01:40.7]}
24. h4 {[%clk 0:01:32]} 24... g4 {[%clk 0:01:35]} 25. Qxg4 {[%clk 0:01:24.6]}
25... Ne5 {[%clk 0:01:35.2]} 26. Nxe5 {[%clk 0:01:23.8]} 26... dxe5 {[%clk
0:01:35.5]} 27. Nc5 {[%clk 0:01:20]} 27... Kh8 {[%clk 0:01:26.9]} 28. Ne6 {[%clk
0:01:15.5]} 28... Rxe6 {[%clk 0:01:26.7]} 29. Bxg7+ {[%clk 0:01:14.4]} 29...
Qxg7 {[%clk 0:01:27.2]} 30. Qxg7+ {[%clk 0:01:12.2]} 30... Kxg7 {[%clk
0:01:27.7]} 31. fxe6 {[%clk 0:01:10]} 31... Nd4 {[%clk 0:00:53.1]} 32. Ba4
{[%clk 0:01:08.9]} 32... Nxe6 {[%clk 0:00:37.2]} 33. dxe6 {[%clk 0:01:05.5]}
33... Bxe4 {[%clk 0:00:36.3]} 34. e7 {[%clk 0:01:04]} 34... Bg6 {[%clk
0:00:34.9]} 35. Rac1 {[%clk 0:01:01.9]} 35... Bf7 {[%clk 0:00:21]} 36. Rfd1
{[%clk 0:01:00.7]} 1-0

[Event "Late-Titled-Tuesday-Blitz-April-16-2024"]
[Site "Chess.com"]
[Date "2024.04.16"]
[Round "9"]
[White "FabianoCaruana"]
[Black "artin10862"]
[Result "1-0"]
[WhiteElo "3087"]
[BlackElo "2938"]
[TimeControl "180+1"]
[EndTime "15:43:10 PDT"]
[Termination "FabianoCaruana won on time"]

1. c4 {[%clk 0:03:00.9]} 1... Nf6 {[%clk 0:02:52.5]} 2. Nc3 {[%clk 0:03:00.9]}
2... e6 {[%clk 0:02:45.3]} 3. d4 {[%clk 0:03:00.2]} 3... d5 {[%clk 0:02:40.7]}
4. cxd5 {[%clk 0:03:01.1]} 4... Nxd5 {[%clk 0:02:40.6]} 5. e4 {[%clk 0:03:00.8]}
5... Nxc3 {[%clk 0:02:41.1]} 6. bxc3 {[%clk 0:03:01.7]} 6... c5 {[%clk
0:02:40.4]} 7. Rb1 {[%clk 0:03:02.3]} 7... Be7 {[%clk 0:02:36]} 8. h4 {[%clk
0:03:00.4]} 8... b6 {[%clk 0:02:32.7]} 9. h5 {[%clk 0:02:59.3]} 9... O-O {[%clk
0:02:31.1]} 10. h6 {[%clk 0:02:58.7]} 10... g6 {[%clk 0:02:30.9]} 11. Nf3 {[%clk
0:02:59.3]} 11... Bb7 {[%clk 0:02:30.6]} 12. Bd3 {[%clk 0:02:59.3]} 12... Nc6
{[%clk 0:02:27.5]} 13. Be3 {[%clk 0:02:52]} 13... cxd4 {[%clk 0:02:19.4]} 14.
cxd4 {[%clk 0:02:52.9]} 14... Nb4 {[%clk 0:02:19.9]} 15. O-O {[%clk 0:02:52.3]}
15... Nxd3 {[%clk 0:02:14]} 16. Qxd3 {[%clk 0:02:53.2]} 16... f5 {[%clk
0:02:14.3]} 17. Qb3 {[%clk 0:02:40.2]} 17... Bxe4 {[%clk 0:01:50.5]} 18. Qxe6+
{[%clk 0:02:38.2]} 18... Kh8 {[%clk 0:01:51]} 19. Bf4 {[%clk 0:02:32.8]} 19...
Bf6 {[%clk 0:01:27.2]} 20. Rbc1 {[%clk 0:02:19.9]} 20... Bxf3 {[%clk 0:01:17.4]}
21. gxf3 {[%clk 0:02:20.8]} 21... Qxd4 {[%clk 0:01:17.8]} 22. Be3 {[%clk
0:02:19.2]} 22... Qe5 {[%clk 0:01:01.3]} 23. Qxe5 {[%clk 0:02:12.4]} 23... Bxe5
{[%clk 0:01:02.2]} 24. Rfe1 {[%clk 0:02:01.5]} 24... Rfe8 {[%clk 0:01:00.2]} 25.
Bg5 {[%clk 0:02:00.2]} 25... Kg8 {[%clk 0:00:58.1]} 26. Kg2 {[%clk 0:01:57.2]}
26... Kf7 {[%clk 0:00:55.5]} 27. Rxe5 {[%clk 0:01:52.1]} 27... Rxe5 {[%clk
0:00:50.2]} 28. Rc7+ {[%clk 0:01:52.7]} 28... Ke6 {[%clk 0:00:43.3]} 29. Re7+
{[%clk 0:01:46.6]} 29... Kd5 {[%clk 0:00:39.4]} 30. Rxh7 {[%clk 0:01:47.5]}
30... f4 {[%clk 0:00:31.9]} 31. Bxf4 {[%clk 0:01:47.2]} 31... Rf5 {[%clk
0:00:29.5]} 32. Be3 {[%clk 0:01:43.8]} 32... g5 {[%clk 0:00:28]} 33. Rg7 {[%clk
0:01:41.4]} 33... Raf8 {[%clk 0:00:23]} 34. h7 {[%clk 0:01:27.5]} 34... Rh8
{[%clk 0:00:17.6]} 35. Rxa7 {[%clk 0:01:27.1]} 35... Ke6 {[%clk 0:00:12.9]} 36.
Bd4 {[%clk 0:01:26.4]} 36... Re5 {[%clk 0:00:06.5]} 37. Bxe5 {[%clk 0:01:25.6]}
37... Kxe5 {[%clk 0:00:07]} 38. Kg3 {[%clk 0:01:26.3]} 38... Kf5 {[%clk
0:00:06.7]} 39. Rb7 {[%clk 0:01:26.1]} 39... Kg6 {[%clk 0:00:01.5]} 40. a4
{[%clk 0:01:19.7]} 1-0

[Event "Late-Titled-Tuesday-Blitz-April-16-2024"]
[Site "Chess.com"]
[Date "2024.04.16"]
[Round "9"]
[White "RebecaJimnz"]
[Black "lluiss"]
[Result "1-0"]
[WhiteElo "2263"]
[BlackElo "2113"]
[TimeControl "180+1"]
[EndTime "15:43:14 PDT"]
[Termination "RebecaJimnz won by resignation"]

1. e4 {[%clk 0:03:00.9]} 1... c5 {[%clk 0:02:49]} 2. Nc3 {[%clk 0:02:59.8]} 2...
d6 {[%clk 0:02:48.8]} 3. g3 {[%clk 0:03:00.4]} 3... Nc6 {[%clk 0:02:48.8]} 4.
Bg2 {[%clk 0:03:01]} 4... g6 {[%clk 0:02:49.4]} 5. d3 {[%clk 0:03:01.6]} 5...
Bg7 {[%clk 0:02:49.9]} 6. Be3 {[%clk 0:03:02.1]} 6... Rb8 {[%clk 0:02:49.5]} 7.
Qd2 {[%clk 0:03:02.7]} 7... b5 {[%clk 0:02:49.9]} 8. Nge2 {[%clk 0:03:02.4]}
8... b4 {[%clk 0:02:50.3]} 9. Nd1 {[%clk 0:03:03.1]} 9... Qb6 {[%clk 0:02:50]}
10. O-O {[%clk 0:03:01.5]} 10... h5 {[%clk 0:02:50]} 11. h3 {[%clk 0:03:00.5]}
11... e6 {[%clk 0:02:39.4]} 12. f4 {[%clk 0:02:59.2]} 12... Nge7 {[%clk
0:02:39.5]} 13. Kh2 {[%clk 0:02:23.6]} 13... a5 {[%clk 0:02:39.1]} 14. c3 {[%clk
0:02:10.7]} 14... Ba6 {[%clk 0:02:38.6]} 15. f5 {[%clk 0:01:50.9]} 15... gxf5
{[%clk 0:02:31.1]} 16. exf5 {[%clk 0:01:50.2]} 16... Nxf5 {[%clk 0:02:27.1]} 17.
Rxf5 {[%clk 0:01:50.3]} 17... exf5 {[%clk 0:02:26.7]} 18. Bf4 {[%clk 0:01:50.9]}
18... Ne5 {[%clk 0:02:24.4]} 19. d4 {[%clk 0:01:45]} 19... Bxe2 {[%clk
0:01:53.8]} 20. dxe5 {[%clk 0:01:35.2]} 20... Bxd1 {[%clk 0:01:47.9]} 21. Rxd1
{[%clk 0:01:33.1]} 21... dxe5 {[%clk 0:01:43.2]} 22. Qd7+ {[%clk 0:01:28.7]}
22... Kf8 {[%clk 0:01:42.6]} 23. Bd5 {[%clk 0:01:17.7]} 23... Qf6 {[%clk
0:01:27.1]} 24. Bg5 {[%clk 0:01:17.5]} 24... Qg6 {[%clk 0:01:22.3]} 25. Be7+
{[%clk 0:00:39.3]} 25... Kg8 {[%clk 0:01:21.1]} 26. Rf1 {[%clk 0:00:34.5]} 26...
f4 {[%clk 0:01:02.6]} 27. gxf4 {[%clk 0:00:30.8]} 27... exf4 {[%clk 0:00:32.5]}
28. Bd6 {[%clk 0:00:20.5]} 28... Qg3+ {[%clk 0:00:31.3]} 29. Kh1 {[%clk
0:00:19.7]} 29... Qxh3+ {[%clk 0:00:30.5]} 30. Qxh3 {[%clk 0:00:19]} 1-0